bitfinex-derivatives/quotes_ETHF0:USTF0_20250612
["timestamp","ask_amount","ask_price","bid_price","bid_amount"]
[1749692228738,3.93362,2754.7,2754.6,0.14941602]
[1749692229039,3.2078,2754.7,2754.6,0.87526602]
[1749692229737,3.2078,2755.0,2754.7,1.81456]
[1749692229945,3.2078,2755.0,2754.9,0.72577]
[1749692230743,3.2078,2755.3,2754.8,0.6252]
[1749692231047,3.2078,2755.0,2754.7,0.7258]
[1749692231342,3.2078,2755.0,2754.9,0.72577]
[1749692232747,3.93355,2755.0,2754.7,0.72582]
[1749692233733,0.72577,2754.9,2754.6,0.87524602]
[1749692233941,3.2078,2754.9,2754.6,0.14941602]
[1749692234143,3.2078,2754.9,2754.7,0.7258]
[1749692234445,3.93357,2754.9,2754.7,0.72582]
[1749692234744,3.2078,2754.9,2754.8,0.72579]
[1749692235045,3.2078,2755.3,2755.2,0.72569]
[1749692235239,4.49955056,2755.3,2755.2,0.72569]
[1749692235545,3.2078,2755.3,2755.2,0.72569]
[1749692235742,4.50158419,2755.3,2755.2,0.72569]
[1749692236246,3.2078,2755.5,2755.0,0.5956]
[1749692236436,3.2078,2755.5,2753.6,3.63056]
[1749692236437,3.2078,2755.1,2754.1,3.2078]
[1749692236635,3.93369,2754.5,2754.2,1.34094]
[1749692236842,3.93369,2754.5,2754.2,0.615]
[1749692237047,3.93369,2754.5,2753.9,6.7707]
[1749692237048,1.29476912,2754.4,2753.9,6.7707]
[1749692237241,1.29476912,2754.3,2753.9,7.3857]
[1749692237451,1.29476912,2754.2,2754.1,0.72597]
[1749692238347,1.29476912,2754.2,2754.1,0.72598]
[1749692240238,1.29476912,2754.2,2753.9,2.5637]
[1749692240545,1.29476912,2754.1,2754.0,0.726]
[1749692240746,1.29476912,2754.1,2754.0,1.9293]
[1749692240942,0.0054408,2754.4,2754.3,0.72593]
[1749692241344,3.2132408,2754.4,2753.8,3.2132408]
[1749692241550,1.2189,2754.3,2753.8,3.2132408]
[1749692241750,1.2189,2754.3,2754.2,0.72595]
[1749692241943,0.0054408,2754.4,2754.3,0.72593]
[1749692242142,0.0054408,2754.4,2754.0,2.57819]
[1749692242343,0.0054408,2754.4,2754.1,0.72596]
[1749692242744,0.0054408,2754.4,2754.0,1.8522]
[1749692242942,0.0054408,2754.4,2754.3,0.72593]
[1749692245650,0.0054408,2754.4,2754.3,5.54493]
[1749692246653,0.7313508,2754.4,2754.1,0.72598]
[1749692246850,1.99393,2754.3,2754.0,0.726]
[1749692247047,1.268,2754.3,2753.8,3.2132408]
[1749692247450,0.72601,2754.0,2753.8,3.2132408]
[1749692247744,2.4769,2754.3,2753.8,3.2132408]
[1749692247948,1.268,2754.3,2754.1,0.72596]
[1749692248145,1.268,2754.3,2754.2,0.72595]
[1749692248348,0.0054408,2754.4,2753.9,1.2282]
[1749692248852,0.0054408,2754.4,2754.3,0.72593]
[1749692249852,0.0054408,2754.4,2754.2,1.9205]
[1749692250049,3.9391408,2754.4,2754.2,0.6145]
[1749692250254,3.2132408,2754.4,2754.2,0.6145]
[1749692250453,0.7313608,2754.4,2754.2,0.6145]
[1749692250658,0.72593,2754.3,2754.2,0.6145]
[1749692251152,0.72593,2754.3,2753.8,25.5272408]
[1749692251153,0.72602,2754.0,2753.8,0.0054408]
[1749692251358,0.72601,2754.0,2753.8,0.0054408]
[1749692251756,4.819,2753.9,2753.8,0.0054408]
[1749692252052,4.819,2753.9,2752.7,3.2078]
[1749692252053,9.8276,2753.9,2752.7,3.2078]
[1749692252251,5.73464,2753.9,2753.5,0.72613]
[1749692252456,5.73464,2753.9,2753.6,0.72611]
[1749692252760,0.72612,2753.6,2753.3,0.6445]
[1749692253256,1.27777811,2753.5,2752.8,5.1493]
[1749692253457,1.27777811,2753.4,2753.2,0.7262]
[1749692253654,1.27777811,2753.3,2753.2,0.7262]
[1749692255356,3.93395,2753.5,2753.1,0.72623]
[1749692255551,1.27918382,2753.4,2753.0,0.6445]
[1749692255756,1.27918382,2753.3,2753.1,0.72623]
[1749692255960,1.27918382,2753.2,2753.1,0.72623]
[1749692256948,1.27918382,2753.2,2752.5,3.2078]
[1749692256949,9.48698382,2753.2,2752.5,3.2078]
[1749692257152,2.52328382,2753.1,2752.5,0.72638]
[1749692257357,3.2078,2752.9,2752.2,4.4308]
[1749692257558,1.28462462,2752.8,2752.2,4.4308]
[1749692257752,1.27918382,2752.7,2752.6,0.72637]
[1749692257958,0.0054408,2752.8,2752.7,0.72635]
[1749692258154,0.5447,2753.5,2752.8,0.72632]
[1749692258353,0.5447,2753.5,2753.2,0.7262]
[1749692258354,1.29276122,2753.4,2753.2,0.7262]
[1749692258554,1.29276122,2753.3,2753.2,0.72622]
[1749692258754,1.29311391,2753.3,2752.9,1.223]
[1749692258955,0.5447,2753.5,2753.4,0.72616]
[1749692259151,1.84482712,2753.5,2753.4,0.72616]
[1749692260266,1.30012712,2753.5,2753.4,3.93396]
[1749692260562,0.0054408,2753.7,2753.6,0.72611]
[1749692260757,2.13483226,2754.4,2753.7,1.81519]
[1749692261054,10.04429,2754.5,2754.2,0.72595]
[1749692261055,5.22328,2754.5,2754.2,0.72595]
[1749692261263,5.22328,2754.5,2753.8,1.2709]
[1749692261454,5.22329,2754.5,2754.2,0.72593]
[1749692261657,3.2078,2754.5,2753.8,1.2709]
[1749692261858,0.0054408,2754.4,2754.3,0.72593]
[1749692262257,0.0054408,2754.4,2754.0,3.2078]
[1749692262455,3.2132408,2754.4,2754.1,0.72597]
[1749692262661,4.4111408,2754.4,2753.8,6.1182]
[1749692262856,4.4111408,2754.4,2754.2,0.72595]
[1749692263160,3.2132408,2754.4,2754.2,0.72595]
[1749692263355,3.9391508,2754.4,2754.1,0.72596]
[1749692263658,3.2132408,2754.4,2754.2,0.72593]
[1749692263857,0.5499408,2754.4,2754.3,0.72593]
[1749692265063,0.5499408,2754.4,2754.3,1.99793]
[1749692267560,0.0054408,2754.4,2754.3,1.99793]
[1749692268558,3.4981,2755.0,2754.3,1.272]
[1749692268766,0.2903,2755.0,2754.9,0.72577]
[1749692268957,0.5996,2755.3,2755.2,0.72569]
[1749692269262,0.5996,2755.3,2755.1,0.7257]
[1749692269563,0.5996,2755.3,2755.2,0.72569]
[1749692269960,0.72574,2755.0,2754.0,3.2078]
[1749692270256,8.8074,2755.3,2751.9,0.00854291]
[1749692270257,3.2078,2754.2,2753.4,3.2078]
[1749692270459,3.2078,2753.9,2753.1,3.93404]
[1749692270664,4.864,2753.8,2753.4,0.72615]
[1749692270856,1.2186,2753.7,2753.4,0.72615]
[1749692271056,3.2078,2753.6,2753.3,0.0054408]
[1749692271257,1.2965,2753.5,2753.3,0.0054408]
[1749692271454,1.2965,2753.5,2753.3,0.7316208]
[1749692271669,1.8412,2753.5,2753.3,0.7316208]
[1749692271867,0.5447,2753.5,2753.4,0.72616]
[1749692272562,1.27085,2753.5,2753.3,0.0054408]
[1749692272859,0.5447,2753.5,2753.3,0.0054408]
[1749692273167,0.5447,2753.5,2753.4,0.72616]
[1749692274360,0.5447,2753.5,2753.4,1.97826]
[1749692275565,0.0054408,2753.8,2753.7,0.72608]
[1749692278067,0.0054408,2753.8,2753.6,0.72609]
[1749692278259,0.0054408,2753.8,2753.5,1.8925]
[1749692278462,0.0054408,2753.8,2753.4,0.72615]
[1749692278463,0.7315208,2753.8,2753.4,0.72615]
[1749692278665,0.7315108,2753.8,2753.4,0.72615]
[1749692278865,0.7315108,2753.8,2753.3,23.7618408]
[1749692278866,0.0054408,2753.8,2753.3,23.7618408]
[1749692279471,0.7315108,2753.8,2753.5,0.72613]
[1749692279671,0.0054408,2753.8,2753.6,0.7261]
[1749692279873,0.0054408,2753.8,2753.3,23.7618408]
[1749692279874,0.0054408,2753.8,2753.7,0.72608]
[1749692280067,0.0054408,2753.8,2753.6,0.7261]
[1749692280471,0.0054408,2753.8,2753.7,0.72608]
[1749692280775,0.0054408,2753.8,2753.3,23.7618408]
[1749692281072,1.9294108,2753.8,2753.5,0.72612]
[1749692281465,0.0054408,2753.8,2753.7,0.72608]
[1749692283770,0.0054408,2753.8,2753.7,10.59108]
[1749692284172,0.0054408,2753.8,2753.7,23.30608]
[1749692284479,8e-07,2753.8,2753.7,23.30608]
[1749692284773,3.2078,2754.9,2754.6,0.72583]
[1749692284968,3.2078,2754.9,2754.8,0.72579]
[1749692285169,3.2078,2754.9,2754.6,0.72583]
[1749692285373,3.2078,2754.9,2754.5,0.6382]
[1749692285577,3.2078,2754.9,2754.7,0.72581]
[1749692285772,3.2078,2754.9,2754.5,1.8943]
[1749692285969,3.2078,2754.9,2754.7,0.7258]
[1749692286474,3.2078,2754.9,2754.7,0.72581]
[1749692286673,0.72587,2754.6,2754.2,0.72593]
[1749692286869,0.72583,2754.7,2754.1,25.6398]
[1749692287071,0.72584,2754.6,2754.4,0.72589]
[1749692287271,0.72585,2754.6,2754.3,0.72591]
[1749692287470,1.2991,2754.8,2754.2,0.72593]
[1749692287679,1.2991,2754.8,2754.1,25.6428]
[1749692287872,0.72585,2754.6,2754.3,0.72591]
[1749692288171,0.72585,2754.6,2754.4,0.72589]
[1749692288578,3.2078,2754.9,2754.1,25.6428]
[1749692288781,3.2078,2754.9,2754.3,1.81481]
[1749692289077,3.2078,2754.9,2754.8,0.72579]
[1749692289480,3.2078,2754.9,2754.7,0.7258]
[1749692289674,3.2078,2754.9,2754.8,0.72579]
[1749692290888,3.2078,2754.9,2754.6,0.6136]
[1749692290889,3.2078,2754.9,2754.7,0.7258]
[1749692291086,3.2078,2754.9,2754.6,1.9019]
[1749692291283,3.2078,2754.9,2754.7,0.7258]
[1749692291887,3.2078,2754.9,2754.8,0.72579]
[1749692292190,3.93357,2754.9,2754.7,0.72581]
[1749692292592,3.2078,2754.9,2754.7,0.72581]
[1749692293079,3.2078,2754.9,2754.8,0.72579]
[1749692293894,0.2957408,2755.0,2754.9,0.72577]
[1749692294787,0.2957408,2755.0,2754.7,3.2132408]
[1749692294994,3.2078,2754.8,2754.7,0.0054408]
[1749692295290,0.6385,2754.9,2754.7,0.7312508]
[1749692295692,0.6385,2754.9,2754.8,0.72579]
[1749692295885,0.2957408,2755.0,2754.9,0.72577]
[1749692296282,0.2957408,2755.0,2754.7,0.0054408]
[1749692296490,0.2957408,2755.0,2754.8,0.72579]
[1749692297292,0.2957408,2755.0,2754.9,0.72577]
[1749692297491,0.2957408,2755.0,2754.8,0.72577]
[1749692297693,0.2957408,2755.0,2754.8,0.72578]
[1749692297894,0.2957408,2755.0,2754.7,0.7312508]
[1749692297895,0.72578,2754.9,2754.7,0.7312508]
[1749692298090,1.0215008,2755.0,2754.8,0.72578]
[1749692298698,0.2957408,2755.0,2754.8,0.72578]
[1749692299300,0.2957408,2755.0,2754.9,0.72577]
[1749692300593,0.2957408,2755.0,2754.8,0.72578]
[1749692300893,0.72578,2754.9,2754.7,1.2159408]
[1749692301196,0.2957408,2755.0,2754.7,0.0054408]
[1749692301399,1.0214908,2755.0,2754.7,0.7312608]
[1749692301900,0.2957408,2755.0,2754.7,0.0054408]
[1749692302095,0.2957408,2755.0,2754.8,0.72578]
[1749692302399,3.2078,2754.9,2754.7,0.7312408]
[1749692302604,3.93358,2754.9,2754.7,0.0054408]
[1749692302998,0.72579,2754.8,2754.7,0.0054408]
[1749692303295,2.03108515,2754.8,2754.7,0.0054408]
[1749692303497,2.03108515,2754.8,2753.8,6.6272]
[1749692303498,12.35519515,2754.8,2753.8,6.6272]
[1749692303697,0.72603,2753.9,2753.6,1.31909]
[1749692304099,0.72604,2753.9,2753.4,5.01]
[1749692304296,1.25,2754.0,2753.4,5.603]
[1749692304493,3.2078,2753.7,2753.4,1.1991408]
[1749692304997,3.9339,2753.7,2753.4,1.9252908]
[1749692305300,3.9339,2753.7,2753.4,1.9253008]
[1749692305501,0.72613,2753.6,2753.4,1.1991408]
[1749692306098,3.2078,2754.0,2753.4,6.1991408]
[1749692306298,3.2078,2754.6,2754.2,0.72594]
[1749692306595,0.2957408,2755.0,2754.5,0.72587]
[1749692306803,0.2957408,2755.0,2754.9,0.72577]
[1749692306993,0.2957408,2755.0,2754.8,0.72578]
[1749692307198,0.2957408,2755.0,2754.7,22.342]
[1749692307601,0.2957408,2755.0,2754.7,23.6154]
[1749692307796,0.2957408,2755.0,2754.9,0.72577]
[1749692308901,0.2957408,2755.0,2754.9,1.99917]
[1749692310898,0.2903,2755.0,2754.9,6.99917]
[1749692312604,1e-05,2755.0,2754.9,6.99917]
[1749692312816,0.0054408,2755.2,2755.1,0.72571]
[1749692313010,0.2123,2756.0,2755.5,1.81401]
[1749692313312,1.2723,2756.4,2755.7,1.8139]
[1749692313501,1.33118664,2756.3,2756.2,0.72541]
[1749692313701,3.2078,2756.8,2756.2,17.496]
[1749692313897,1.33139811,2756.7,2756.6,0.72532]
[1749692314399,3.2132408,2756.9,2756.6,0.72532]
[1749692314604,3.2132408,2756.9,2756.7,0.72528]
[1749692315208,3.9384908,2756.9,2756.5,1.35293]
[1749692315410,3.9384908,2756.9,2756.6,0.72531]
[1749692315708,3.2132408,2756.9,2756.6,0.72531]
[1749692316209,3.2132408,2756.9,2756.6,0.7253]
[1749692316410,3.2132408,2756.9,2756.7,0.72529]
[1749692316709,0.0054408,2756.9,2756.7,0.72529]
[1749692317004,0.0054408,2756.9,2756.8,0.72527]
[1749692317608,0.0054408,2756.9,2756.8,18.19027]
[1749692318213,0.0054408,2756.9,2756.8,23.01427]
[1749692319411,0.7306908,2756.9,2756.7,17.467]
[1749692319713,0.72527,2756.8,2756.7,17.467]
[1749692319912,0.0054408,2756.9,2756.7,17.467]
[1749692319913,0.0054408,2756.9,2756.8,0.72527]
[1749692320313,0.0054408,2756.9,2756.8,5.54827]
[1749692320510,0.0054408,2756.9,2756.4,3.2132408]
[1749692320718,3.2078,2756.6,2756.4,0.7308008]
[1749692321208,3.2078,2756.6,2756.4,0.0054408]
[1749692321407,0.72535,2756.5,2756.4,0.0054408]
[1749692321609,1.95145,2756.5,2756.4,0.0054408]
[1749692321808,8.03953,2756.5,2755.7,3.2078]
[1749692322016,3.9333,2756.0,2755.5,4.823]
[1749692322310,0.6385,2755.9,2755.7,0.72555]
[1749692322516,1.364,2755.9,2755.6,0.72557]
[1749692322712,0.6385,2755.9,2755.5,4.823]
[1749692323113,1.8317,2756.2,2755.5,6.63697]
[1749692323314,0.6385,2756.4,2755.9,3.2078]
[1749692323520,0.6385,2756.4,2756.2,0.72541]
[1749692323708,0.6385,2756.4,2756.3,0.7254]
[1749692323912,0.6385,2756.4,2756.0,18.776]
[1749692324214,0.6385,2756.4,2756.2,0.72542]
[1749692324515,1.944,2756.4,2756.2,0.72542]
[1749692325014,3.8134,2756.8,2756.0,17.49]
[1749692325220,3.93315,2756.5,2756.0,17.49]
[1749692325420,1.3055,2756.4,2756.2,0.72542]
[1749692325918,1.3055,2756.4,2756.3,0.7254]
[1749692326114,1.3055,2756.4,2756.2,0.72541]
[1749692326518,1.3055,2756.4,2756.0,17.49]
[1749692327019,1.3055,2756.4,2756.2,0.72541]
[1749692327318,1.3055,2756.4,2756.1,0.72543]
[1749692328018,2.03087,2756.4,2756.1,0.72543]
[1749692328216,1.3055,2756.4,2756.2,0.72542]
[1749692328413,1.3055,2756.4,2756.3,0.7254]
[1749692328722,0.6365,2756.7,2756.0,17.49]
[1749692329021,1.3618,2756.7,2756.4,0.72535]
[1749692329217,0.72532,2756.6,2756.3,0.72538]
[1749692329816,1.8545,2756.7,2756.1,2.4242]
[1749692330124,0.72532,2756.6,2756.3,0.72537]
[1749692330310,1.33960258,2756.5,2756.3,0.72537]
[1749692330621,0.72535,2756.5,2756.2,0.7254]
[1749692330821,0.72537,2756.4,2756.2,0.7254]
[1749692331024,1.94336,2756.5,2756.1,0.6244]
[1749692331223,1.218,2756.5,2756.3,0.72537]
[1749692331415,1.36181,2756.7,2756.4,0.72537]
[1749692331622,1.33970084,2756.6,2756.5,0.72534]
[1749692331816,1.33970084,2756.6,2756.1,0.6244]
[1749692332016,0.6365,2756.7,2756.1,1.8883]
[1749692332315,2.06497848,2756.6,2756.1,1.8883]
[1749692332515,1.8798,2756.7,2756.1,1.8883]
[1749692332820,2.06517024,2756.6,2756.3,0.72538]
[1749692333015,0.72533,2756.6,2756.3,0.72538]
[1749692333216,1.8798,2756.7,2756.2,1.81357]
[1749692333409,1.33995631,2756.6,2756.5,0.72535]
[1749692333613,1.33995631,2756.6,2756.1,1.8883]
[1749692333920,1.33995631,2756.6,2755.6,40.8]
[1749692333921,0.72561,2755.5,2755.0,3.2078]
[1749692334115,3.2078,2755.6,2755.0,3.2078]
[1749692334416,0.6059,2755.4,2755.2,0.72568]
[1749692334818,0.6059,2755.4,2755.3,0.72566]
[1749692335022,0.0054408,2755.6,2755.4,0.72563]
[1749692335223,1.34090614,2755.5,2755.3,0.72565]
[1749692335423,1.34287041,2755.4,2755.3,0.72565]
[1749692335624,1.34287041,2755.4,2755.3,0.72566]
[1749692336423,1.34287041,2755.4,2755.2,18.23468]
[1749692336622,1.34287041,2755.3,2755.2,18.23468]
[1749692336922,0.0054408,2755.6,2755.4,0.72563]
[1749692337223,0.0054408,2755.6,2755.5,5.55061]
[1749692337425,0.0054408,2755.6,2755.5,0.72561]
[1749692340025,0.0054408,2755.6,2755.4,23.05462]
[1749692340322,0.0054408,2755.6,2755.5,0.72561]
[1749692340624,1.35029977,2755.6,2755.4,0.72563]
[1749692340828,0.0054408,2755.6,2755.3,17.488]
[1749692341121,1.34604829,2755.5,2755.3,0.72565]
[1749692341424,1.34604829,2755.5,2755.1,0.0054408]
[1749692341425,4.55373817,2755.4,2755.1,0.0054408]
[1749692341620,0.0054408,2755.6,2755.5,0.72561]
[1749692341923,3.2078,2756.2,2755.5,4.826]
[1749692342118,3.2078,2756.2,2756.1,0.72545]
[1749692342322,4.55389299,2756.2,2756.1,0.72545]
[1749692342518,3.2078,2756.6,2755.9,22.344]
[1749692342825,3.2078,2756.3,2756.1,0.72543]
[1749692343025,0.0054408,2756.5,2756.3,0.72539]
[1749692343230,1.34640068,2756.4,2756.3,0.72537]
[1749692344922,0.0054408,2756.5,2756.4,0.72537]
[1749692345122,1.35175421,2756.5,2756.4,0.72537]
[1749692345728,0.0054408,2756.5,2756.4,0.72537]
[1749692347230,0.0054408,2756.5,2756.4,5.55037]
[1749692347931,0.0054408,2756.5,2756.4,23.04537]
[1749692349023,0.0054408,2756.5,2756.4,17.495]
[1749692349634,0.0054408,2756.5,2756.4,18.22037]
[1749692350428,0.2117,2756.8,2756.7,0.72529]
[1749692350633,0.2117,2756.8,2756.7,8.75809]
[1749692350929,3.2078,2757.4,2757.2,0.72516]
[1749692351131,1.34484415,2757.3,2757.1,0.72517]
[1749692351329,1.34484415,2757.2,2757.1,0.72517]
[1749692351832,3.2078,2757.4,2757.3,0.72513]
[1749692352032,4.55227457,2757.4,2757.2,0.72515]
[1749692352232,2.06923603,2757.3,2757.0,17.484]
[1749692352435,0.72514,2757.3,2757.0,17.484]
[1749692352641,3.8053,2757.4,2757.0,17.484]
[1749692352930,3.2078,2757.4,2757.3,0.72513]
[1749692353126,4.54355967,2757.4,2757.3,0.72513]
[1749692353324,5.26867967,2757.4,2757.0,17.484]
[1749692353528,3.2078,2757.4,2757.2,0.72515]
[1749692353935,3.2078,2757.4,2757.3,0.72513]
[1749692354232,4.54308125,2757.4,2757.2,0.72515]
[1749692354432,3.2078,2757.4,2757.0,17.484]
[1749692354831,3.2078,2757.4,2757.3,0.72513]
[1749692355034,4.54275372,2757.4,2757.3,0.72513]
[1749692356836,4.54275372,2757.4,2757.0,17.484]
[1749692357034,0.72521,2757.0,2756.9,0.0054408]
[1749692357330,1.3340187,2757.0,2756.9,0.7306808]
[1749692357534,3.2078,2757.1,2757.0,0.72521]
[1749692357734,4.5414588,2757.1,2757.0,0.72521]
[1749692358334,3.2078,2757.1,2757.0,0.72521]
[1749692359032,1.2304,2757.3,2757.2,0.72516]
[1749692359237,3.2078,2757.4,2757.3,0.72514]
[1749692359431,4.53989143,2757.4,2757.3,0.72514]
[1749692360033,3.2078,2757.4,2757.3,0.72514]
[1749692360433,0.2168408,2757.5,2757.4,0.72511]
[1749692361134,0.2114,2757.5,2757.4,31.23491]
[1749692361836,1.238,2758.6,2757.7,1.81256]
[1749692362035,1.2882,2758.9,2758.0,5.02014]
[1749692362235,5.26346348,2758.8,2758.3,0.72486]
[1749692362535,1.33634428,2758.7,2758.3,5.5332908]
[1749692362728,1.33634428,2758.7,2758.3,5.5333008]
[1749692363032,0.0054408,2758.7,2758.6,0.7248]
[1749692363238,1.33520108,2758.7,2758.5,0.72481]
[1749692363437,0.0054408,2758.7,2758.6,0.7248]
[1749692364030,0.0054408,2758.7,2758.6,2.0196]
[1749692364432,0.0054408,2758.7,2758.6,0.7248]
[1749692364829,0.7248,2758.6,2758.4,0.6133]
[1749692365034,0.7302308,2758.7,2758.4,22.298]
[1749692365236,0.0054408,2758.7,2758.4,22.298]
[1749692365435,0.0054408,2758.7,2758.6,0.7248]
[1749692366444,3.2078,2759.1,2759.0,0.72469]
[1749692366638,3.2078,2759.5,2759.3,0.72459]
[1749692366842,3.93237,2759.5,2759.0,2.5156]
[1749692367144,3.2078,2759.5,2759.0,1.2442]
[1749692367344,3.2078,2759.5,2759.2,0.72462]
[1749692368041,3.2078,2759.5,2759.2,0.72463]
[1749692368242,3.2078,2759.5,2759.0,1.2442]
[1749692368545,3.2078,2759.5,2759.4,0.72459]
[1749692368738,3.2078,2759.5,2759.0,2.4389]
[1749692369342,3.2078,2759.5,2759.2,0.72463]
[1749692369736,3.2078,2759.5,2759.1,4.801]
[1749692369737,0.7246,2759.4,2759.1,4.801]
[1749692370043,3.2078,2759.2,2759.1,5.52567]
[1749692371042,3.2078,2759.5,2759.2,0.72463]
[1749692371435,3.2078,2759.5,2759.3,0.72462]
[1749692371945,3.2078,2759.5,2759.4,0.72459]
[1749692372140,0.00730304,2759.6,2759.5,0.72456]
[1749692372343,0.00730304,2759.6,2759.5,23.07956]
[1749692372536,0.00360304,2759.6,2759.5,23.07956]
[1749692375343,1.55685,2759.8,2759.7,0.72451]
[1749692375547,3.2078,2760.7,2759.7,5.01909]
[1749692375741,1.33171254,2760.6,2760.0,3.2078]
[1749692375946,3.2078,2760.7,2760.6,0.72428]
[1749692376243,4.53974751,2760.7,2760.6,0.72428]
[1749692376941,4.53974751,2760.7,2760.4,0.0054408]
[1749692377146,0.72429,2760.6,2760.5,17.54]
[1749692377450,2.05187632,2760.6,2760.5,17.54]
[1749692377844,1.32758632,2760.6,2760.5,18.2643]
[1749692378945,0.72407,2761.5,2761.2,0.7241]
[1749692379144,0.6051,2761.5,2761.0,17.525]
[1749692379443,0.6051,2761.5,2761.2,0.72411]
[1749692379647,0.6051,2761.5,2761.4,0.72407]
[1749692380043,1.32915,2761.5,2761.0,18.1437]
[1749692380248,0.6051,2761.5,2761.0,19.4457]
[1749692380550,0.6051,2761.5,2761.4,0.72407]
[1749692380748,3.2078,2761.6,2761.5,0.72404]
[1749692381551,3.93181,2761.6,2761.4,0.72405]
[1749692381944,3.2078,2761.6,2761.0,1.2465]
[1749692382145,0.72407,2761.4,2761.3,0.72408]
[1749692382350,3.93182,2761.6,2761.0,22.9227]
[1749692382547,3.93182,2761.6,2761.4,0.72406]
[1749692382952,0.72404,2761.5,2761.3,0.72408]
[1749692383156,3.2078,2761.6,2761.1,1.2279]
[1749692383349,0.72409,2761.4,2761.2,18.22312]
[1749692383654,0.72409,2761.3,2761.2,18.22312]
[1749692383842,0.72408,2761.4,2761.2,18.22311]
[1749692384055,1.97866,2761.5,2761.3,0.72409]
[1749692384246,0.72407,2761.4,2761.3,0.72409]
[1749692384647,0.72409,2761.3,2761.2,17.499]
[1749692385048,3.2078,2761.3,2760.7,0.6278]
[1749692385247,0.72413,2761.2,2760.8,22.286]
[1749692385557,3.93191,2761.3,2761.2,0.72412]
[1749692386254,3.2078,2761.3,2761.2,0.72412]
[1749692386756,3.2078,2761.3,2760.9,1.81046]
[1749692386757,0.72412,2761.2,2761.1,22.268]
[1749692386957,3.2078,2761.3,2761.1,22.268]
[1749692387258,3.2078,2761.3,2761.2,0.72412]
[1749692387754,2.85885226,2761.6,2761.5,0.72404]
[1749692387755,3.2078,2761.6,2761.5,0.72404]
[1749692388157,5.34263226,2761.6,2761.5,0.72404]
[1749692388549,0.72401,2761.6,2761.4,0.72405]
[1749692388756,1.3568,2761.7,2761.5,0.72403]
[1749692388957,0.6328,2761.7,2761.3,1.2442]
[1749692389258,3.49163226,2761.7,2761.5,0.72402]
[1749692389561,0.72405,2761.5,2761.3,5.17608]
[1749692389761,2.76763226,2761.7,2761.5,0.72404]
[1749692389762,3.49163226,2761.7,2761.5,0.72404]
[1749692390152,2.76763226,2761.7,2761.3,4.452]
[1749692390353,3.49163226,2761.7,2761.5,0.72403]
[1749692390557,2.76763226,2761.7,2761.4,0.72405]
[1749692390859,1.31099343,2761.6,2761.5,0.72404]
[1749692391054,3.44582569,2761.6,2761.5,0.72404]
[1749692391356,4.16983569,2761.6,2761.4,0.72406]
[1749692391559,1.31099343,2761.5,2761.3,5.17607]
[1749692391747,1.31211396,2761.4,2761.3,5.17609]
[1749692392251,1.31211396,2761.4,2761.3,27.39209]
[1749692396655,1.31211396,2761.4,2761.3,32.39209]
[1749692396953,2.13483226,2762.1,2762.0,0.72391]
[1749692397153,2.13483226,2762.2,2762.1,0.72388]
[1749692397354,2.74803226,2762.4,2762.1,0.6201]
[1749692397558,2.74803226,2762.4,2762.3,0.72383]
[1749692397759,2.13483226,2762.4,2762.3,0.72383]
[1749692398160,2.13483226,2762.6,2762.3,3.2078]
[1749692398356,2.13483226,2762.7,2762.6,0.72375]
[1749692398562,2.13483226,2763.0,2762.9,0.72367]
[1749692398762,2.13483226,2763.1,2763.0,0.72365]
[1749692398957,2.13483226,2763.2,2763.1,0.72362]
[1749692399462,2.13483226,2763.5,2763.0,3.8268]
[1749692399657,5.34263226,2763.6,2763.4,0.72353]
[1749692399865,5.34263226,2763.6,2763.5,17.381]
[1749692400063,5.34263226,2763.6,2763.5,18.10452]
[1749692400263,3.2078,2763.6,2763.5,17.381]
[1749692400464,2.13147184,2763.7,2763.5,17.381]
[1749692400666,2.13147184,2763.9,2763.8,0.72344]
[1749692400863,2.13147184,2764.3,2764.1,0.72333]
[1749692401059,2.13147184,2764.3,2763.8,4.795]
[1749692401060,0.72337,2764.1,2763.9,3.2078]
[1749692401365,2.13337989,2764.0,2763.8,17.379]
[1749692401567,2.13328161,2764.1,2763.8,17.379]
[1749692401865,2.13328161,2764.6,2763.9,4.4203]
[1749692402167,5.34108161,2765.2,2764.4,3.2078]
[1749692402379,5.34108161,2765.2,2764.7,3.2078]
[1749692402670,3.39738161,2765.1,2764.9,0.72314]
[1749692402864,2.13328161,2765.1,2765.0,17.411]
[1749692403259,2.13328161,2765.2,2765.1,0.7231]
[1749692403465,2.13328161,2765.4,2765.0,21.8258]
[1749692403764,1.8604,2765.5,2765.0,21.8258]
[1749692404170,2.13328161,2765.5,2765.3,3.2078]
[1749692404371,2.13328161,2765.8,2765.4,4.793]
[1749692404567,2.13328161,2765.9,2765.5,17.406]
[1749692404770,0.72302,2765.4,2764.7,0.00543075]
[1749692405067,3.2078,2765.8,2764.7,4.79843075]
[1749692405068,0.72314,2765.0,2764.7,4.79843075]
[1749692405266,0.72313,2765.0,2764.7,22.22643075]
[1749692405467,3.2078,2764.8,2764.7,0.00543075]
[1749692405664,3.2078,2764.8,2764.2,3.2078]
[1749692405970,3.42628161,2764.9,2763.6,21.892]
[1749692405971,3.2078,2764.4,2764.1,17.435]
[1749692406161,3.93109,2764.4,2764.0,0.72337]
[1749692406364,1.293,2764.3,2763.7,3.2078]
[1749692406579,1.293,2764.3,2763.8,22.226]
[1749692406871,3.2078,2764.1,2763.8,0.00543075]
[1749692407066,1.293,2764.0,2763.8,0.00543075]
[1749692407468,0.72341,2763.9,2763.8,0.00543075]
[1749692407863,1.293,2764.0,2763.8,0.00543075]
[1749692408066,0.72341,2763.9,2763.8,0.00543075]
[1749692408265,9.14968161,2764.0,2763.8,0.00543075]
[1749692408467,3.42628161,2764.0,2763.8,0.72886075]
[1749692408669,0.72341,2763.9,2763.8,0.00543075]
[1749692408870,2.01961,2763.9,2763.8,0.00543075]